bitfinex-derivatives/quotes_BTCF0:USTF0_20250823
["timestamp","ask_amount","ask_price","bid_price","bid_amount"]
[1755955090185,1.06324221,115210.0,115200.0,0.11751786]
[1755955094883,1.06324221,115210.0,115200.0,0.08499786]
[1755955095382,1.06324221,115210.0,115200.0,0.07134786]
[1755955102893,1.06324221,115210.0,115200.0,0.04997786]
[1755955103782,1.06324221,115210.0,115200.0,0.04039786]
[1755955105092,1.06324221,115210.0,115190.0,0.39883]
[1755955105394,1.3920784,115200.0,115190.0,0.42964]
[1755955105595,1.41125054,115200.0,115190.0,0.46216]
[1755955105790,1.89971354,115200.0,115190.0,0.08459]
[1755955105993,1.89971354,115200.0,115190.0,0.07094]
[1755955106489,1.41125054,115200.0,115190.0,0.07094]
[1755955106891,1.41125054,115200.0,115190.0,0.03382]
[1755955107095,1.41125054,115200.0,115190.0,0.02438]
[1755955107298,1.41125054,115200.0,115190.0,0.03382]
[1755955107599,1.41325054,115200.0,115190.0,0.05519]
[1755955108188,1.41325054,115200.0,115190.0,0.08693]
[1755955108695,1.41425054,115200.0,115190.0,0.10053]
[1755955108997,0.92578754,115200.0,115190.0,0.10053]
[1755955109392,1.41425054,115200.0,115190.0,0.10053]
[1755955110192,1.51550155,115200.0,115190.0,0.10053]
[1755955112798,1.51550155,115200.0,115190.0,0.05519]
[1755955117505,1.51550155,115200.0,115190.0,0.11707]
[1755955119710,1.02703855,115200.0,115190.0,0.11707]
[1755955119904,1.51550155,115200.0,115190.0,0.11707]
[1755955120916,1.87630155,115200.0,115190.0,0.11707]
[1755955129222,1.38783855,115200.0,115190.0,0.11707]
[1755955129514,1.87630155,115200.0,115190.0,0.11707]
[1755955133612,1.87630155,115200.0,115190.0,0.03382]
[1755955135319,1.51550155,115200.0,115190.0,0.11703]
[1755955140525,1.02703855,115200.0,115190.0,0.11703]
[1755955140724,1.51550155,115200.0,115190.0,0.11703]
[1755955142325,1.51550155,115200.0,115190.0,0.086]
[1755955142618,1.51550155,115200.0,115190.0,0.11776]
[1755955143017,2.00396455,115200.0,115190.0,0.03345]
[1755955143225,1.87630155,115200.0,115190.0,0.02438]
[1755955143621,2.36476455,115200.0,115190.0,0.02438]
[1755955144823,1.87430155,115200.0,115190.0,0.02438]
[1755955145021,1.87630155,115200.0,115190.0,0.02438]
[1755955146217,2.36476455,115200.0,115190.0,0.02438]
[1755955146423,1.87630155,115200.0,115190.0,0.02438]
[1755955154035,1.51550155,115200.0,115190.0,0.02438]
[1755955154628,1.87630155,115200.0,115190.0,0.02438]
[1755955155537,1.38783855,115200.0,115190.0,0.02438]
[1755955155737,1.87630155,115200.0,115190.0,0.02438]
[1755955157233,2.36476455,115200.0,115190.0,0.02438]
[1755955160041,0.1015629,115190.0,115180.0,0.08799552]
[1755955160241,0.5992059,115190.0,115180.0,0.11975552]
[1755955160443,0.5992059,115190.0,115180.0,0.13500552]
[1755955160840,0.66958718,115190.0,115180.0,0.13500552]
[1755955161342,0.67058718,115190.0,115180.0,0.13500552]
[1755955161838,0.67258718,115190.0,115180.0,0.13500552]
[1755955163143,0.18412418,115190.0,115180.0,0.13500552]
[1755955163342,0.67258718,115190.0,115180.0,0.13500552]
[1755955164344,0.68116701,115190.0,115180.0,0.13500552]
[1755955165247,0.78241802,115190.0,115180.0,0.13500552]
[1755955166741,0.78241802,115190.0,115180.0,0.10324552]
[1755955166943,0.0868504,115180.0,115170.0,0.02367]
[1755955167133,1.3917734,115180.0,115170.0,0.03274]
[1755955167334,1.3917734,115180.0,115170.0,0.48029]
[1755955167335,0.1015704,115180.0,115170.0,0.48029]
[1755955167637,1.3825934,115180.0,115170.0,0.48029]
[1755955167846,0.8941304,115180.0,115170.0,0.48029]
[1755955168146,1.3825934,115180.0,115170.0,0.48029]
[1755955168343,1.3917734,115180.0,115170.0,0.48029]
[1755955168540,1.3937734,115180.0,115170.0,0.58968335]
[1755955168740,1.3947734,115180.0,115170.0,0.58968335]
[1755955170246,1.49602441,115180.0,115170.0,0.58968335]
[1755955173250,1.49602441,115180.0,115170.0,0.48029]
[1755955176335,0.69428441,115180.0,115170.0,0.48029]
[1755955176539,1.48680441,115180.0,115170.0,0.48029]
[1755955177149,1.49598441,115180.0,115170.0,0.48029]
[1755955183249,0.21500141,115180.0,115170.0,0.48029]
[1755955183453,1.49598441,115180.0,115170.0,0.48029]
[1755955183855,0.70346441,115180.0,115170.0,0.48029]
[1755955184049,1.49598441,115180.0,115170.0,0.48029]
[1755955185355,0.70346441,115180.0,115170.0,0.48029]
[1755955185757,1.49594441,115180.0,115170.0,0.48029]
[1755955190760,1.49594441,115180.0,115170.0,0.4317]
[1755955192161,1.49594441,115180.0,115170.0,0.54109335]
[1755955192665,1.49594441,115180.0,115170.0,0.18029335]
[1755955196071,1.49594441,115180.0,115170.0,0.22909335]
[1755955197968,1.49594441,115180.0,115170.0,0.1197]
[1755955198774,1.49594441,115180.0,115170.0,0.22909335]
[1755955201172,1.49594441,115180.0,115170.0,0.1197]
[1755955203975,1.00748141,115180.0,115170.0,0.1197]
[1755955204176,1.49594441,115180.0,115170.0,0.1197]
[1755955204382,1.49594441,115180.0,115170.0,0.4805]
[1755955204778,1.49582441,115180.0,115170.0,0.4805]
[1755955209272,1.49582441,115180.0,115170.0,0.39354]
[1755955209975,1.49582441,115180.0,115170.0,0.50293335]
[1755955210175,1.49582441,115180.0,115170.0,0.14213335]
[1755955211079,1.49582441,115180.0,115170.0,0.03274]
[1755955211281,1.49582441,115180.0,115170.0,0.02367]
[1755955213876,1.49582441,115180.0,115170.0,0.03303]
[1755955215686,1.49582441,115180.0,115170.0,0.02367]
[1755955218984,0.101578,115170.0,115160.0,0.66565637]
[1755955219187,0.599221,115170.0,115160.0,0.66565637]
[1755955219876,0.61886986,115170.0,115160.0,0.43390662]
[1755955220281,0.61886986,115170.0,115160.0,0.46672662]
[1755955220587,0.72012087,115170.0,115160.0,0.46672662]
[1755955220986,0.72112087,115170.0,115160.0,0.46672662]
[1755955221188,0.72312087,115170.0,115160.0,0.46672662]
[1755955221988,0.72312087,115170.0,115160.0,0.05526]
[1755955222487,0.72312087,115170.0,115160.0,0.16465335]
[1755955223290,0.72312087,115170.0,115160.0,0.13255335]
[1755955223480,0.72312087,115170.0,115160.0,0.02316]
[1755955225691,0.72312087,115170.0,115160.0,0.13255335]
[1755955226085,0.72312087,115170.0,115160.0,0.02316]
[1755955227888,0.72312087,115170.0,115160.0,0.03289]
[1755955228393,0.72312087,115170.0,115160.0,0.09055]
[1755955229991,0.72312087,115170.0,115160.0,0.10453]
[1755955231687,0.72312087,115170.0,115160.0,0.1209]
[1755955233688,0.72312087,115170.0,115160.0,0.10692]
[1755955233889,0.72312087,115170.0,115160.0,0.05597]
[1755955234397,0.72312087,115170.0,115160.0,0.09055]
[1755955234896,0.72312087,115170.0,115160.0,0.10453]
[1755955235797,0.23465787,115170.0,115160.0,0.1209]
[1755955236003,1.51544087,115170.0,115160.0,0.10692]
[1755955236194,1.51544087,115170.0,115160.0,0.07234]
[1755955236394,1.51544087,115170.0,115160.0,0.05597]
[1755955236794,1.51544087,115170.0,115160.0,0.10453]
[1755955239401,1.02697787,115170.0,115160.0,0.10453]
[1755955239594,1.51544087,115170.0,115160.0,0.1209]
[1755955239802,1.02697787,115170.0,115160.0,0.1209]
[1755955240103,0.72312087,115170.0,115160.0,0.1209]
[1755955240298,1.51548087,115170.0,115160.0,0.1209]
[1755955240697,0.72312087,115170.0,115160.0,0.1731855]
[1755955240893,1.01783787,115170.0,115160.0,0.4817]
[1755955241196,1.50630087,115170.0,115160.0,0.4817]
[1755955242095,1.51548087,115170.0,115160.0,0.4817]
[1755955244600,1.51548087,115170.0,115160.0,0.5685655]
[1755955250399,1.02701787,115170.0,115160.0,0.5685655]
[1755955250601,1.51548087,115170.0,115160.0,0.38396]
[1755955250798,0.1015855,115160.0,115150.0,0.53672637]
[1755955250999,0.5992285,115160.0,115150.0,0.68074756]
[1755955251200,0.5992285,115160.0,115150.0,0.69711756]
[1755955251909,0.5992285,115160.0,115150.0,0.58767637]
[1755955252897,0.6002285,115160.0,115150.0,0.58767637]
[1755955254107,0.6022285,115160.0,115150.0,0.58767637]
[1755955254707,0.6022285,115160.0,115150.0,0.69713894]
[1755955254904,0.6022285,115160.0,115150.0,0.57568884]
[1755955255108,0.6022285,115160.0,115150.0,0.45224627]
[1755955255305,0.70347951,115160.0,115150.0,0.48682627]
[1755955255506,0.70347951,115160.0,115150.0,0.50080627]
[1755955256203,0.70347951,115160.0,115150.0,0.58767927]
[1755955257610,0.70347951,115160.0,115150.0,0.45224627]
[1755955258208,0.70347951,115160.0,115150.0,0.50057627]
[1755955259617,0.70347951,115160.0,115150.0,0.41279627]
[1755955260120,0.70347951,115160.0,115150.0,0.43548627]
[1755955260313,0.70347951,115160.0,115150.0,0.46938627]
[1755955260513,0.70347951,115160.0,115150.0,0.48381627]
[1755955261316,0.21501651,115160.0,115150.0,0.48381627]
[1755955261519,1.44194251,115160.0,115150.0,0.43548627]
[1755955263418,0.46501651,115160.0,115150.0,0.46938627]
[1755955263618,0.95347951,115160.0,115150.0,0.43548627]
[1755955264220,0.95347951,115160.0,115150.0,0.46938627]
[1755955265521,0.95347951,115160.0,115150.0,0.43548627]
[1755955266426,1.44194251,115160.0,115150.0,0.43548627]
[1755955267919,1.44194251,115160.0,115150.0,0.46938627]
[1755955268529,1.19194251,115160.0,115150.0,0.41764]
[1755955270234,1.19094251,115160.0,115150.0,0.41764]
[1755955270434,1.19194251,115160.0,115150.0,0.41764]
[1755955270927,1.19194251,115160.0,115150.0,0.39495]
[1755955272426,1.19194251,115160.0,115150.0,0.41764]
[1755955274935,1.19194251,115160.0,115150.0,0.45154]
[1755955276537,1.19194251,115160.0,115150.0,0.48168]
[1755955286944,1.19194251,115160.0,115150.0,0.44778]
[1755955287542,1.19194251,115160.0,115150.0,0.48198]
[1755955297758,1.19194251,115160.0,115150.0,0.08698]
[1755955297959,1.19194251,115160.0,115150.0,0.12118]
[1755955303164,1.19194251,115160.0,115150.0,0.07255]
[1755955303867,1.19194251,115160.0,115150.0,0.12141]
[1755955308064,0.1107325,115150.0,115140.0,8e-05]
[1755955308271,0.1111176,115130.0,115120.0,0.5259677]
[1755955308464,1.4010506,115130.0,115120.0,0.5349977]
[1755955308770,1.4010506,115130.0,115120.0,0.49915513]
[1755955308969,1.4010506,115130.0,115120.0,0.6086177]
[1755955309969,1.4020506,115130.0,115120.0,0.6086177]
[1755955310467,1.50330161,115130.0,115120.0,0.6086177]
[1755955311061,1.51217837,115130.0,115120.0,0.49915513]
[1755955312274,1.51417837,115130.0,115120.0,0.49915513]
[1755955313578,1.58317152,115130.0,115120.0,0.49915513]
[1755955315774,1.09470852,115130.0,115120.0,0.49915513]
[1755955315974,1.58317152,115130.0,115120.0,0.49915513]
[1755955319072,0.98357861,115130.0,115120.0,1.32451323]
[1755955319271,0.06925101,115130.0,115120.0,1.32531323]
[1755955319474,0.06925101,115130.0,115120.0,1.4347758]
[1755955319877,0.06925101,115130.0,115120.0,1.9347758]
[1755955320176,0.06925101,115130.0,115120.0,1.6847758]
[1755955320380,0.06925101,115130.0,115120.0,1.57531323]
[1755955320880,0.15613861,115130.0,115120.0,1.6847758]
[1755955321379,0.06925101,115130.0,115120.0,1.6847758]
[1755955322785,0.06925101,115130.0,115120.0,2.36775323]
[1755955322987,0.15613861,115130.0,115120.0,2.36775323]
[1755955323469,0.15613861,115130.0,115120.0,1.57531323]
[1755955324377,0.15613861,115130.0,115120.0,1.08605023]
[1755955324580,0.15613861,115130.0,115120.0,1.57451323]
[1755955324781,0.71919161,115130.0,115120.0,1.08605023]
[1755955324985,0.71919161,115130.0,115120.0,1.57451323]
[1755955325377,0.71919161,115130.0,115120.0,1.08605023]
[1755955325581,0.73387161,115130.0,115120.0,1.57451323]
[1755955328985,0.24540861,115130.0,115120.0,1.57451323]
[1755955329184,0.73387161,115130.0,115120.0,1.57451323]
[1755955329785,0.73387161,115130.0,115120.0,1.08605023]
[1755955329986,0.73387161,115130.0,115120.0,1.57451323]
[1755955330688,0.73387161,115130.0,115120.0,1.68385564]
[1755955331790,0.73387161,115130.0,115120.0,1.57451323]
[1755955331990,0.73387161,115130.0,115120.0,1.08605023]
[1755955332190,0.73387161,115130.0,115120.0,1.57451323]
[1755955336993,0.73387161,115130.0,115120.0,1.08605023]
[1755955337194,0.73387161,115130.0,115120.0,1.57451323]
[1755955338991,0.73387161,115130.0,115120.0,1.68387449]
[1755955340195,0.73387161,115130.0,115120.0,1.57451323]
[1755955340392,0.73387161,115130.0,115120.0,1.08605023]
[1755955341300,0.73387161,115130.0,115120.0,1.57451323]
[1755955341494,0.73387161,115130.0,115120.0,1.68389738]
[1755955341896,0.73387161,115130.0,115120.0,1.08605023]
[1755955348609,0.73387161,115130.0,115120.0,1.57451323]
[1755955349510,0.73387161,115130.0,115120.0,1.72995053]
[1755955350913,0.73387161,115130.0,115120.0,1.57451323]
[1755955351912,0.73387161,115130.0,115120.0,1.08605023]
[1755955352412,0.24540861,115130.0,115120.0,1.08605023]
[1755955352612,0.24540861,115130.0,115120.0,1.57451323]
[1755955353513,0.24540861,115130.0,115120.0,1.08605023]
[1755955355814,0.73387161,115130.0,115120.0,1.08605023]
[1755955356014,0.73387161,115130.0,115120.0,1.57451323]
[1755955357517,0.73387161,115130.0,115120.0,1.08605023]
[1755955357712,0.73387161,115130.0,115120.0,1.57451323]
[1755955360514,0.73387161,115130.0,115120.0,1.08605023]
[1755955360815,0.73387161,115130.0,115120.0,1.57451323]
[1755955362719,0.73387161,115130.0,115120.0,1.68400192]
[1755955363916,0.73387161,115130.0,115120.0,1.57451323]
[1755955365818,0.73387161,115130.0,115120.0,1.08605023]
[1755955366317,0.73387161,115130.0,115120.0,1.57451323]
[1755955367720,0.73387161,115130.0,115120.0,1.68401702]
[1755955368124,0.73387161,115130.0,115120.0,1.57451323]
[1755955370020,0.73387161,115130.0,115120.0,1.08605023]
[1755955370021,0.73455161,115130.0,115120.0,1.08605023]
[1755955370221,0.73455161,115130.0,115120.0,1.57451323]
[1755955370820,0.73455161,115130.0,115120.0,0.46495513]
[1755955370821,0.99453161,115130.0,115120.0,0.46495513]
[1755955371018,0.99453161,115130.0,115120.0,0.45029513]
[1755955371914,0.99453161,115130.0,115120.0,0.49852513]
[1755955372617,0.99453161,115130.0,115120.0,0.60803976]
[1755955372821,0.99373161,115130.0,115120.0,0.60803976]
[1755955373016,0.99373161,115130.0,115120.0,0.49852513]
[1755955373417,0.99373161,115130.0,115120.0,0.60803976]
[1755955374119,0.99373161,115130.0,115120.0,0.49852513]
[1755955374914,1.06279427,115130.0,115120.0,0.49852513]
[1755955379016,0.81279427,115130.0,115120.0,0.49852513]
[1755955379921,0.81279427,115130.0,115120.0,0.13772513]
[1755955381331,0.81279427,115130.0,115120.0,0.13623513]
[1755955381723,0.81279427,115130.0,115120.0,0.49703513]
[1755955388135,0.81279427,115130.0,115120.0,0.58392993]
[1755955389338,0.81279427,115130.0,115120.0,0.49703513]
[1755955390034,0.81279427,115130.0,115120.0,0.58392993]
[1755955394627,0.32433127,115130.0,115120.0,0.58392993]
[1755955394934,0.80361427,115130.0,115120.0,0.58392993]
[1755955395928,0.80361427,115130.0,115120.0,0.69344456]
[1755955396129,0.31515127,115130.0,115120.0,0.69344456]
[1755955396338,0.80361427,115130.0,115120.0,0.58392993]
[1755955398648,0.31515127,115130.0,115120.0,0.58392993]
[1755955398843,0.80361427,115130.0,115120.0,0.58392993]
[1755955400232,0.31515127,115130.0,115120.0,0.58392993]
[1755955400433,0.80361427,115130.0,115120.0,0.58392993]
[1755955401033,0.76910427,115130.0,115120.0,0.58392993]
[1755955401238,0.80231427,115130.0,115120.0,0.58392993]
[1755955403343,0.81149427,115130.0,115120.0,0.58392993]
[1755955404744,0.81149427,115130.0,115120.0,0.69344456]
[1755955405643,1.60361427,115130.0,115120.0,0.69344456]
[1755955406144,1.60361427,115130.0,115120.0,0.60654976]
[1755955407251,1.60361427,115130.0,115120.0,0.69344416]
[1755955408247,1.11515127,115130.0,115120.0,0.69344416]
[1755955408437,1.60361427,115130.0,115120.0,0.69344416]
[1755955410450,1.11515127,115130.0,115120.0,0.69344416]
[1755955410650,1.60361427,115130.0,115120.0,0.69344416]
[1755955410850,1.60361427,115130.0,115120.0,0.60654976]
[1755955411240,1.60361427,115130.0,115120.0,0.58392953]
[1755955411849,1.60361427,115130.0,115120.0,0.46473513]
[1755955412449,1.60361427,115130.0,115120.0,0.49835513]
[1755955413045,1.11515127,115130.0,115120.0,0.49835513]
[1755955413243,1.60361427,115130.0,115120.0,0.49835513]
[1755955414650,1.60361427,115130.0,115120.0,0.45029513]
[1755955415148,1.60361427,115130.0,115120.0,0.49889513]
[1755955415743,1.60361427,115130.0,115120.0,0.60840976]
[1755955418847,1.59443427,115130.0,115120.0,0.60840976]
[1755955419353,1.60361427,115130.0,115120.0,0.60840976]
[1755955423370,1.60361427,115130.0,115120.0,0.49889513]
[1755955423976,1.11515127,115130.0,115120.0,0.49889513]
[1755955424176,1.60361427,115130.0,115120.0,0.49889513]
[1755955424467,1.59443427,115130.0,115120.0,0.49889513]
[1755955428578,1.60361427,115130.0,115120.0,0.48099]
[1755955429178,1.11515127,115130.0,115120.0,0.48099]
[1755955429369,1.59443427,115130.0,115120.0,0.5678844]
[1755955429672,1.60361427,115130.0,115120.0,0.5678844]
[1755955431177,1.11515127,115130.0,115120.0,0.5678844]
[1755955431675,1.60361427,115130.0,115120.0,0.5678844]
[1755955439891,1.59443427,115130.0,115120.0,0.5678844]
[1755955440588,1.60361427,115130.0,115120.0,0.5678844]
[1755955440887,1.11515127,115130.0,115120.0,0.5678844]
[1755955441098,1.60361427,115130.0,115120.0,0.5678844]
[1755955442289,1.59443427,115130.0,115120.0,0.5678844]
[1755955443883,1.60361427,115130.0,115120.0,0.5678844]
[1755955444886,1.60361427,115130.0,115120.0,0.67739903]
[1755955445991,1.60361427,115130.0,115120.0,0.62879903]
[1755955446885,1.60361427,115130.0,115120.0,0.66372903]
[1755955447086,1.60361427,115130.0,115120.0,0.67829903]
[1755955450491,1.60361427,115130.0,115120.0,0.59140463]
[1755955451993,1.60361427,115130.0,115120.0,0.48189]
[1755955452380,1.60361427,115130.0,115120.0,0.44696]
[1755955452884,1.60361427,115130.0,115120.0,0.48189]
[1755955454288,1.60361427,115130.0,115120.0,0.5687845]
[1755955459300,1.60361427,115130.0,115120.0,0.67829913]
[1755955459498,1.60361427,115130.0,115120.0,0.59140463]
[1755955459698,1.60361427,115130.0,115120.0,0.48189]
[1755955460096,1.60361427,115130.0,115120.0,0.5687844]
[1755955462495,1.60361427,115130.0,115120.0,0.67829903]
[1755955466206,1.60361427,115130.0,115120.0,0.48189]
[1755955467608,1.60361427,115130.0,115120.0,0.5687844]
[1755955480225,1.11515127,115130.0,115120.0,0.5687844]
[1755955480417,1.60361427,115130.0,115120.0,0.5687844]
[1755955482522,1.11515127,115130.0,115120.0,0.5687844]
[1755955483115,1.60361427,115130.0,115120.0,0.5687844]
[1755955483511,1.11515127,115130.0,115120.0,0.5687844]
[1755955483718,1.56118357,115130.0,115120.0,0.5661444]
[1755955483922,1.59588357,115130.0,115120.0,0.5661444]
[1755955485023,1.10742057,115130.0,115120.0,0.5661444]
[1755955485422,1.59588357,115130.0,115120.0,0.5661444]
[1755955485623,1.10742057,115130.0,115120.0,0.5661444]
[1755955485824,1.59588357,115130.0,115120.0,0.5661444]
[1755955486419,1.59588357,115130.0,115120.0,0.6756813]
[1755955488725,1.60506357,115130.0,115120.0,0.5661444]
[1755955488926,1.60506357,115130.0,115120.0,0.6756533]
[1755955492931,1.60506357,115130.0,115120.0,0.5661444]
[1755955502533,1.60506357,115130.0,115120.0,0.47925]
[1755955503334,1.11660057,115130.0,115120.0,0.47925]
[1755955503528,1.60506357,115130.0,115120.0,0.47925]
[1755955507933,1.60506357,115130.0,115120.0,0.39459]
[1755955508638,1.60506357,115130.0,115120.0,0.38556]
[1755955510439,1.60506357,115130.0,115120.0,0.02476]
[1755955511040,1.60506357,115130.0,115120.0,0.03455]
[1755955514344,1.60506357,115130.0,115120.0,0.02476]
[1755955514547,1.60506357,115130.0,115120.0,0.13426156]
[1755955514940,1.60506357,115130.0,115120.0,0.02476]
[1755955515844,1.60506357,115130.0,115120.0,0.03455]
[1755955518847,1.11660057,115130.0,115120.0,0.05775]
[1755955519050,1.60506357,115130.0,115120.0,0.05775]
[1755955519548,1.60506357,115130.0,115120.0,0.03455]
[1755955528346,1.11660057,115130.0,115120.0,0.03455]
[1755955528547,1.60506357,115130.0,115120.0,0.03455]
[1755955531856,1.60506357,115130.0,115120.0,0.02476]
[1755955532550,0.81298357,115130.0,115120.0,0.02476]
[1755955532755,1.60514357,115130.0,115120.0,0.05575]
[1755955532959,1.60514357,115130.0,115120.0,0.12031]
[1755955534050,1.60514357,115130.0,115120.0,0.03461]
[1755955539157,1.60514357,115130.0,115120.0,0.0903]
[1755955541360,1.60514357,115130.0,115120.0,0.19980156]
[1755955541760,1.60514357,115130.0,115120.0,0.0903]
[1755955543865,1.60514357,115130.0,115120.0,0.05575]
[1755955548164,1.60514357,115130.0,115120.0,0.16525156]
[1755955548571,1.60514357,115130.0,115120.0,0.05575]
[1755955550684,0.19375367,115130.0,115120.0,1.3727174]
[1755955550889,1.01915367,115130.0,115120.0,1.4072674]
[1755955551095,1.50761667,115130.0,115120.0,1.43630057]
[1755955551386,1.60368357,115130.0,115120.0,1.05095057]
[1755955551772,1.60368357,115130.0,115120.0,1.08550057]
[1755955552485,1.60368357,115130.0,115120.0,0.55095057]
[1755955553176,1.60368357,115130.0,115120.0,0.58550057]
[1755955553487,1.11522057,115130.0,115120.0,0.58550057]
[1755955553680,1.60368357,115130.0,115120.0,0.58550057]
[1755955556187,1.11522057,115130.0,115120.0,0.58550057]
[1755955556376,1.60368357,115130.0,115120.0,0.58550057]
[1755955556684,1.60368357,115130.0,115120.0,0.55095057]
[1755955556888,1.60368357,115130.0,115120.0,0.53712057]
[1755955558190,1.60368357,115130.0,115120.0,0.64662213]
[1755955559286,1.60368357,115130.0,115120.0,0.67821213]
[1755955560984,1.60368357,115130.0,115120.0,0.69227213]
[1755955561993,1.11522057,115130.0,115120.0,0.69227213]
[1755955562184,1.60368357,115130.0,115120.0,0.69227213]
[1755955562487,1.50761667,115130.0,115120.0,0.69227213]
[1755955562693,0.94850101,115130.0,115120.0,1.18073513]
[1755955562893,0.94850101,115130.0,115120.0,1.78073513]
[1755955563094,0.94850101,115130.0,115120.0,1.67123357]
[1755955564396,0.11001101,115130.0,115120.0,1.78073513]
[1755955564692,0.93382101,115130.0,115120.0,1.78073513]
[1755955567689,1.02070791,115130.0,115120.0,1.68073513]
[1755955567891,1.50917091,115130.0,115120.0,1.68073513]
[1755955568894,1.02988791,115130.0,115120.0,1.68073513]
[1755955569096,1.51835091,115130.0,115120.0,1.68073513]
[1755955569498,1.51835091,115130.0,115120.0,1.19227213]
[1755955570094,1.58954745,115130.0,115120.0,1.08277057]
[1755955570796,1.58954745,115130.0,115120.0,0.58277057]
[1755955572201,1.58954745,115130.0,115120.0,0.55118057]
[1755955572401,1.58954745,115130.0,115120.0,0.53712057]
[1755955573908,0.15646101,115130.0,115120.0,1.07123357]
[1755955574100,0.90201101,115130.0,115120.0,1.07123357]
[1755955574293,0.89298101,115130.0,115120.0,1.07123357]
[1755955574503,0.89298101,115130.0,115120.0,1.18073513]
[1755955574699,0.90766101,115130.0,115120.0,1.68073513]
[1755955574905,0.90766101,115130.0,115120.0,1.57123357]
[1755955574906,1.43692401,115130.0,115120.0,1.57123357]
[1755955575406,1.43692401,115130.0,115120.0,1.68073513]
[1755955575805,0.94846101,115130.0,115120.0,1.68073513]
[1755955578708,0.94846101,115130.0,115120.0,1.19227213]
[1755955578910,0.94846101,115130.0,115120.0,1.68073513]
[1755955580213,0.94946101,115130.0,115120.0,1.68173513]
[1755955580708,0.94946101,115130.0,115120.0,1.57223357]
[1755955581211,1.43792401,115130.0,115120.0,1.57223357]
[1755955584210,1.52481121,115130.0,115120.0,1.57223357]
[1755955585111,1.03634821,115130.0,115120.0,1.57223357]
[1755955585311,1.52481121,115130.0,115120.0,1.57223357]
[1755955585513,1.52481121,115130.0,115120.0,1.21143357]
[1755955585711,1.52481121,115130.0,115120.0,1.93303357]
[1755955586210,1.52481121,115130.0,115120.0,2.08847087]
[1755955588205,1.52481121,115130.0,115120.0,2.19788116]
[1755955588605,1.52481121,115130.0,115120.0,2.04244386]
[1755955588804,1.03634821,115130.0,115120.0,2.04244386]
[1755955589001,1.52692121,115130.0,115120.0,2.04244386]
[1755955589204,1.52692121,115130.0,115120.0,1.55398086]
[1755955589510,1.53610121,115130.0,115120.0,1.44457057]
[1755955589709,1.53610121,115130.0,115120.0,1.44505057]
[1755955589902,1.52692121,115130.0,115120.0,1.93351357]
[1755955590104,1.52692121,115130.0,115120.0,1.44505057]
[1755955605032,1.03845821,115130.0,115120.0,1.44505057]
[1755955605233,1.52692121,115130.0,115120.0,1.44505057]
[1755955606635,0.73492121,115130.0,115120.0,1.44505057]
[1755955606826,1.52684121,115130.0,115120.0,1.44505057]
[1755955608127,1.03837821,115130.0,115120.0,1.44505057]
[1755955608328,1.52684121,115130.0,115120.0,1.44505057]
[1755955611131,1.52684121,115130.0,115120.0,1.55450687]
[1755955611728,1.52684121,115130.0,115120.0,2.04296987]
[1755955611930,1.03837821,115130.0,115120.0,2.04296987]
[1755955612130,1.52684121,115130.0,115120.0,2.04296987]
[1755955613334,1.52684121,115130.0,115120.0,1.93351357]
[1755955614136,1.03837821,115130.0,115120.0,1.93351357]
[1755955614339,1.52684121,115130.0,115120.0,1.93351357]
[1755955615042,1.03837821,115130.0,115120.0,1.93351357]
[1755955615342,1.52684121,115130.0,115120.0,1.93351357]
[1755955620941,1.03837821,115130.0,115120.0,1.93351357]
[1755955621136,1.52684121,115130.0,115120.0,1.93351357]
[1755955621344,1.03829821,115130.0,115120.0,1.93351357]
[1755955621644,1.52676121,115130.0,115120.0,1.93351357]
[1755955622045,1.52676121,115130.0,115120.0,1.44505057]
[1755955622343,1.52676121,115130.0,115120.0,1.93351357]
[1755955628946,0.73492121,115130.0,115120.0,1.93351357]
[1755955629144,1.52676121,115130.0,115120.0,1.93351357]
[1755955629443,1.52676121,115130.0,115120.0,1.44505057]
[1755955630344,1.52676121,115130.0,115120.0,1.55457919]
[1755955630541,0.24645821,115130.0,115120.0,1.55457919]
[1755955630743,1.52676121,115130.0,115120.0,1.55457919]
[1755955631840,1.52676121,115130.0,115120.0,1.44505057]
[1755955632540,1.49284121,115130.0,115120.0,1.44505057]
[1755955632740,1.52565121,115130.0,115120.0,1.44505057]
[1755955632941,1.52565121,115130.0,115120.0,1.93351357]
[1755955636040,0.07967101,115130.0,115120.0,1.93351357]
[1755955636241,0.95835821,115130.0,115120.0,2.04304081]
[1755955636447,1.50268121,115130.0,115120.0,1.55457821]
[1755955636648,1.53549121,115130.0,115120.0,1.55457821]
[1755955637448,1.04702821,115130.0,115120.0,1.55457821]
[1755955637645,1.53549121,115130.0,115120.0,1.55457821]
[1755955637947,1.53549121,115130.0,115120.0,1.44505097]
[1755955638643,1.52631121,115130.0,115120.0,1.93351397]
[1755955638844,1.03784821,115130.0,115120.0,1.93351397]
[1755955639145,1.52631121,115130.0,115120.0,1.93351397]
[1755955639344,1.52631121,115130.0,115120.0,1.44505097]
[1755955639545,0.73451121,115130.0,115120.0,1.93351397]
[1755955639745,1.52631121,115130.0,115120.0,2.04301254]
[1755955640045,1.52631121,115130.0,115120.0,1.93351397]
[1755955640547,1.03784821,115130.0,115120.0,1.44505097]
[1755955640741,0.73451121,115130.0,115120.0,1.93351397]
[1755955640943,1.52631121,115130.0,115120.0,1.93351397]
[1755955642141,1.52631121,115130.0,115120.0,1.44505097]
[1755955646150,0.73451121,115130.0,115120.0,1.44505097]
[1755955646352,1.52631121,115130.0,115120.0,1.44505097]
[1755955647052,0.95835821,115130.0,115120.0,1.93351397]
[1755955647249,0.95835821,115130.0,115120.0,2.72531397]
[1755955648152,0.99129821,115130.0,115120.0,2.72531397]
[1755955648451,1.01358821,115130.0,115120.0,2.72531397]
[1755955649250,1.01358821,115130.0,115120.0,1.93351397]
[1755955650551,1.01358821,115130.0,115120.0,2.04300797]
[1755955651253,1.02261821,115130.0,115120.0,2.04300797]
[1755955652953,0.23081821,115130.0,115120.0,2.04300797]
[1755955653258,1.02257821,115130.0,115120.0,2.08895127]
[1755955654155,1.5397649,115130.0,115120.0,1.56841827]
[1755955654458,1.5397649,115130.0,115120.0,0.98152347]
[1755955654757,1.60807005,115130.0,115120.0,1.01618347]
[1755955655056,1.60807005,115130.0,115120.0,0.86074617]
[1755955656955,1.60807005,115130.0,115120.0,0.97023841]
[1755955657556,1.11960705,115130.0,115120.0,0.97023841]
[1755955657756,1.60807005,115130.0,115120.0,0.97023841]
[1755955658855,1.60807005,115130.0,115120.0,0.82608617]
[1755955659059,1.60807005,115130.0,115120.0,0.86074617]
[1755955659254,1.60807005,115130.0,115120.0,0.82608617]
[1755955659559,1.60807005,115130.0,115120.0,0.86074617]
[1755955665058,1.60807005,115130.0,115120.0,0.82608617]
[1755955665268,1.85807005,115130.0,115120.0,0.41390617]
[1755955666063,1.85807005,115130.0,115120.0,0.46957617]
[1755955666263,1.85807005,115130.0,115120.0,0.50030617]
[1755955666662,1.85807005,115130.0,115120.0,0.60979841]
[1755955669264,1.36960705,115130.0,115120.0,0.60979841]